[Event "*** Titled Tuesday Blitz"]
[Site "Chess.com"]
[Date "2020.04.28"]
[Round "1"]
[White "Blagorod"]
[Black "skoularikii"]
[Result "0-1"]
[WhiteElo "2132"]
[BlackElo "2515"]
[TimeControl "180+1"]
[EndTime "10:06:24 PDT"]
[Termination "skoularikii won by resignation"]

1. e4 {[%clk 0:03:00.9]} 1... e5 {[%clk 0:02:59.2]} 2. Nf3 {[%clk 0:03:00.6]}
2... Nc6 {[%clk 0:02:56.8]} 3. Bb5 {[%clk 0:03:00.2]} 3... a6 {[%clk 0:02:56.1]}
4. Ba4 {[%clk 0:03:00.3]} 4... b5 {[%clk 0:02:56]} 5. Bb3 {[%clk 0:02:59.5]}
5... Nf6 {[%clk 0:02:55.6]} 6. d4 {[%clk 0:02:51.6]} 6... d6 {[%clk 0:02:42]} 7.
dxe5 {[%clk 0:02:47.8]} 7... dxe5 {[%clk 0:02:39.6]} 8. Qxd8+ {[%clk 0:02:44.1]}
8... Nxd8 {[%clk 0:02:32.9]} 9. Nxe5 {[%clk 0:02:43.6]} 9... Bd6 {[%clk
0:02:27.7]} 10. Nf3 {[%clk 0:02:40.4]} 10... Nxe4 {[%clk 0:02:27.2]} 11. a4
{[%clk 0:02:19.7]} 11... Bb7 {[%clk 0:02:14.6]} 12. O-O {[%clk 0:02:14]} 12...
O-O {[%clk 0:02:11]} 13. Be3 {[%clk 0:02:03.3]} 13... Nc5 {[%clk 0:02:10]} 14.
Nd4 {[%clk 0:01:45.5]} 14... Be5 {[%clk 0:01:58]} 15. axb5 {[%clk 0:01:22]}
15... Nxb3 {[%clk 0:01:55.7]} 16. Nxb3 {[%clk 0:01:14]} 16... Bxb2 {[%clk
0:01:45.7]} 17. Ra2 {[%clk 0:01:11.5]} 17... Be5 {[%clk 0:01:42.3]} 18. b6
{[%clk 0:01:01]} 18... cxb6 {[%clk 0:01:39.9]} 19. Bxb6 {[%clk 0:01:00.6]} 19...
Ne6 {[%clk 0:01:39.8]} 20. N1d2 {[%clk 0:00:52.2]} 20... Rfc8 {[%clk 0:01:38.6]}
21. c4 {[%clk 0:00:46.7]} 21... Bd6 {[%clk 0:01:36.6]} 22. Na5 {[%clk
0:00:45.2]} 22... Bc6 {[%clk 0:01:35]} 23. Rb1 {[%clk 0:00:40.1]} 23... Be8
{[%clk 0:01:34.2]} 24. Ne4 {[%clk 0:00:36.4]} 24... Be7 {[%clk 0:01:33.5]} 25.
Rc2 {[%clk 0:00:25.8]} 25... f6 {[%clk 0:01:32.4]} 26. Re1 {[%clk 0:00:20.4]}
26... Bg6 {[%clk 0:01:30.4]} 27. Rce2 {[%clk 0:00:19.2]} 27... Bb4 {[%clk
0:01:29.9]} 28. Nd6 {[%clk 0:00:17.5]} 28... Bxe1 {[%clk 0:01:24.4]} 29. Nxc8
{[%clk 0:00:17.3]} 29... Bxa5 {[%clk 0:01:18]} 30. Bxa5 {[%clk 0:00:15.9]} 30...
Nd4 {[%clk 0:01:17.6]} 31. Rd2 {[%clk 0:00:13.1]} 31... Nc6 {[%clk 0:01:10.6]}
32. Rd6 {[%clk 0:00:07.1]} 32... Rxc8 {[%clk 0:01:09.5]} 33. Bb6 {[%clk
0:00:06.5]} 33... Ne5 {[%clk 0:01:07]} 34. c5 {[%clk 0:00:06.2]} 34... Nc4
{[%clk 0:01:07.3]} 35. Re6 {[%clk 0:00:03.5]} 35... Nxb6 {[%clk 0:01:07.1]} 36.
cxb6 {[%clk 0:00:03.6]} 36... Rc1+ {[%clk 0:01:07]} 0-1

[Event "*** Titled Tuesday Blitz"]
[Site "Chess.com"]
[Date "2020.04.28"]
[Round "1"]
[White "kuli4ik"]
[Black "rynos0411"]
[Result "1-0"]
[WhiteElo "2691"]
[BlackElo "2353"]
[TimeControl "180+1"]
[EndTime "10:06:29 PDT"]
[Termination "kuli4ik won by resignation"]

1. Nf3 {[%clk 0:02:57.8]} 1... Nf6 {[%clk 0:02:53.4]} 2. g3 {[%clk 0:02:55.4]}
2... g6 {[%clk 0:02:51.9]} 3. b3 {[%clk 0:02:54.8]} 3... Bg7 {[%clk 0:02:52.8]}
4. Bb2 {[%clk 0:02:50]} 4... O-O {[%clk 0:02:50.5]} 5. Bg2 {[%clk 0:02:49.9]}
5... d6 {[%clk 0:02:48.7]} 6. d4 {[%clk 0:02:42.3]} 6... Nc6 {[%clk 0:02:46.3]}
7. O-O {[%clk 0:02:41.9]} 7... e5 {[%clk 0:02:44.4]} 8. dxe5 {[%clk 0:02:42]}
8... Ng4 {[%clk 0:02:43.8]} 9. Qd2 {[%clk 0:02:41.9]} 9... Ngxe5 {[%clk
0:02:42.6]} 10. c4 {[%clk 0:02:41.7]} 10... Bf5 {[%clk 0:02:40.3]} 11. Nc3
{[%clk 0:02:41]} 11... Re8 {[%clk 0:02:40.2]} 12. Rad1 {[%clk 0:02:40.1]} 12...
Qc8 {[%clk 0:02:37.2]} 13. Nd5 {[%clk 0:02:39.6]} 13... Nxf3+ {[%clk 0:02:24.6]}
14. exf3 {[%clk 0:02:36.3]} 14... Ne5 {[%clk 0:02:03.5]} 15. f4 {[%clk
0:02:33.5]} 15... Nd7 {[%clk 0:01:40.9]} 16. Rfe1 {[%clk 0:02:25.8]} 16... Be6
{[%clk 0:01:36.5]} 17. Bxg7 {[%clk 0:02:19.2]} 17... Kxg7 {[%clk 0:01:37.4]} 18.
Qc3+ {[%clk 0:02:16.7]} 18... f6 {[%clk 0:01:26.3]} 19. Ne3 {[%clk 0:02:07.7]}
19... Nc5 {[%clk 0:01:07.4]} 20. b4 {[%clk 0:02:06.3]} 20... Na4 {[%clk
0:01:06.2]} 21. Qd4 {[%clk 0:01:38.3]} 21... a5 {[%clk 0:00:55.3]} 22. a3 {[%clk
0:01:38]} 22... Ra6 {[%clk 0:00:44.1]} 23. h4 {[%clk 0:01:31.9]} 23... c5 {[%clk
0:00:39.6]} 24. Qd2 {[%clk 0:01:27.1]} 24... axb4 {[%clk 0:00:36.4]} 25. axb4
{[%clk 0:01:27.5]} 25... cxb4 {[%clk 0:00:35]} 26. Qxb4 {[%clk 0:01:27.6]} 26...
Nc5 {[%clk 0:00:35.5]} 27. Rd2 {[%clk 0:01:18.1]} 27... Rd8 {[%clk 0:00:31.4]}
28. Nd5 {[%clk 0:01:12.2]} 28... Bxd5 {[%clk 0:00:31]} 29. Bxd5 {[%clk
0:01:13.1]} 29... Qc7 {[%clk 0:00:29.5]} 30. Rde2 {[%clk 0:01:10.2]} 30... Rd7
{[%clk 0:00:29.9]} 31. Qc3 {[%clk 0:01:05.9]} 31... Na4 {[%clk 0:00:21.2]} 32.
Qd4 {[%clk 0:01:03.9]} 32... Nc5 {[%clk 0:00:16.1]} 33. Re8 {[%clk 0:01:03.3]}
33... Rf7 {[%clk 0:00:02.5]} 34. Bxf7 {[%clk 0:01:02.7]} 34... Kxf7 {[%clk
0:00:03.4]} 35. Qd5+ {[%clk 0:01:02.3]} 35... Kg7 {[%clk 0:00:03]} 36. R1e7+
{[%clk 0:01:02.9]} 1-0

[Event "*** Titled Tuesday Blitz"]
[Site "Chess.com"]
[Date "2020.04.28"]
[Round "1"]
[White "wild_cat99"]
[Black "chessuriel"]
[Result "1/2-1/2"]
[WhiteElo "2542"]
[BlackElo "2212"]
[TimeControl "180+1"]
[EndTime "10:06:30 PDT"]
[Termination "Game drawn by repetition"]

1. Nf3 {[%clk 0:03:00.9]} 1... Nf6 {[%clk 0:02:59.4]} 2. c4 {[%clk 0:02:59.8]}
2... c5 {[%clk 0:03:00.3]} 3. Nc3 {[%clk 0:02:59.1]} 3... d5 {[%clk 0:03:00.7]}
4. e3 {[%clk 0:02:57.1]} 4... Nc6 {[%clk 0:02:59.3]} 5. b3 {[%clk 0:02:53.3]}
5... d4 {[%clk 0:02:56.7]} 6. exd4 {[%clk 0:02:53.1]} 6... cxd4 {[%clk
0:02:57.6]} 7. Na4 {[%clk 0:02:49.5]} 7... e5 {[%clk 0:02:56.3]} 8. d3 {[%clk
0:02:48.3]} 8... Bb4+ {[%clk 0:02:54.2]} 9. Bd2 {[%clk 0:02:47.9]} 9... Bxd2+
{[%clk 0:02:51.1]} 10. Qxd2 {[%clk 0:02:48.8]} 10... O-O {[%clk 0:02:50.9]} 11.
g3 {[%clk 0:02:40.9]} 11... e4 {[%clk 0:02:49.6]} 12. Nh4 {[%clk 0:02:22.9]}
12... e3 {[%clk 0:02:45.7]} 13. fxe3 {[%clk 0:02:20.5]} 13... dxe3 {[%clk
0:02:45.7]} 14. Qb2 {[%clk 0:02:20.4]} 14... Ng4 {[%clk 0:02:33.7]} 15. Bg2
{[%clk 0:02:17.2]} 15... Nf2 {[%clk 0:02:28.7]} 16. O-O {[%clk 0:02:12.6]} 16...
Qxd3 {[%clk 0:02:14.4]} 17. Rxf2 {[%clk 0:02:08.5]} 17... exf2+ {[%clk
0:02:13.9]} 18. Qxf2 {[%clk 0:02:09.4]} 18... Qd4 {[%clk 0:02:02.6]} 19. Qxd4
{[%clk 0:02:07.7]} 19... Nxd4 {[%clk 0:02:02.7]} 20. Rd1 {[%clk 0:02:08.2]}
20... Nf5 {[%clk 0:01:58.9]} 21. Nxf5 {[%clk 0:02:07.2]} 21... Bxf5 {[%clk
0:01:59.5]} 22. Bxb7 {[%clk 0:02:07.2]} 22... Rad8 {[%clk 0:01:57.7]} 23. Bd5
{[%clk 0:02:07.5]} 23... Rfe8 {[%clk 0:01:52]} 24. Nc3 {[%clk 0:02:07.4]} 24...
Re3 {[%clk 0:01:47.8]} 25. Nb5 {[%clk 0:02:00]} 25... a6 {[%clk 0:01:41.5]} 26.
Bxf7+ {[%clk 0:02:00]} 26... Kxf7 {[%clk 0:01:41.2]} 27. Rxd8 {[%clk 0:02:00.9]}
27... axb5 {[%clk 0:01:41.3]} 28. cxb5 {[%clk 0:02:00.9]} 28... Re2 {[%clk
0:01:38.8]} 29. a4 {[%clk 0:02:00.8]} 29... Bh3 {[%clk 0:01:37.9]} 30. b6 {[%clk
0:01:57.3]} 30... Rg2+ {[%clk 0:01:37.3]} 31. Kh1 {[%clk 0:01:57.2]} 31... Rb2
{[%clk 0:01:33.8]} 32. Kg1 {[%clk 0:01:57.2]} 32... Rg2+ {[%clk 0:01:31.7]} 33.
Kh1 {[%clk 0:01:52.4]} 33... Rb2 {[%clk 0:01:27.6]} 34. Kg1 {[%clk 0:01:52.2]}
34... Rxb3 {[%clk 0:01:25.5]} 35. a5 {[%clk 0:01:51.6]} 35... Rb2 {[%clk
0:01:22.8]} 36. a6 {[%clk 0:01:48.4]} 36... Rg2+ {[%clk 0:01:19.8]} 37. Kh1
{[%clk 0:01:48]} 37... Rb2 {[%clk 0:01:19.1]} 38. Kg1 {[%clk 0:01:47.4]} 38...
Rxb6 {[%clk 0:01:18.2]} 39. a7 {[%clk 0:01:47.3]} 39... Rf6 {[%clk 0:01:14.9]}
40. Rf8+ {[%clk 0:01:45.8]} 40... Kxf8 {[%clk 0:01:12.3]} 41. a8=Q+ {[%clk
0:01:45.5]} 41... Kf7 {[%clk 0:01:12.7]} 42. Qd5+ {[%clk 0:01:41.8]} 42... Kf8
{[%clk 0:01:10.6]} 43. Qd8+ {[%clk 0:01:40.7]} 43... Kf7 {[%clk 0:01:10.3]} 44.
Qc7+ {[%clk 0:01:39.2]} 44... Kf8 {[%clk 0:01:09.9]} 45. Qc5+ {[%clk 0:01:36]}
45... Kg8 {[%clk 0:01:03.2]} 46. Qc4+ {[%clk 0:01:36.1]} 46... Kf8 {[%clk
0:01:00.7]} 47. g4 {[%clk 0:01:32.5]} 47... Rf1+ {[%clk 0:00:58.2]} 48. Qxf1+
{[%clk 0:01:32.2]} 48... Bxf1 {[%clk 0:00:59.1]} 49. Kxf1 {[%clk 0:01:33.1]}
49... Kf7 {[%clk 0:00:59.7]} 50. h4 {[%clk 0:01:27.2]} 50... Kf6 {[%clk
0:00:59]} 51. Kf2 {[%clk 0:01:26.4]} 51... Ke5 {[%clk 0:00:58.3]} 52. Ke3 {[%clk
0:01:25.5]} 52... g6 {[%clk 0:00:53.3]} 53. g5 {[%clk 0:01:24.3]} 53... Kf5
{[%clk 0:00:53.2]} 54. Kf3 {[%clk 0:01:24]} 54... Ke5 {[%clk 0:00:53]} 55. Kg4
{[%clk 0:01:23.3]} 55... Ke4 {[%clk 0:00:51.8]} 56. h5 {[%clk 0:01:22.7]} 56...
Ke3 {[%clk 0:00:49.9]} 57. Kh4 {[%clk 0:01:14]} 57... Kf4 {[%clk 0:00:49]} 58.
hxg6 {[%clk 0:01:10.8]} 58... hxg6 {[%clk 0:00:48.8]} 59. Kh3 {[%clk 0:01:11]}
59... Kxg5 {[%clk 0:00:49.1]} 60. Kg3 {[%clk 0:01:11.7]} 60... Kf5 {[%clk
0:00:48.5]} 61. Kf3 {[%clk 0:01:11.8]} 61... Kg5 {[%clk 0:00:47.6]} 62. Kg3
{[%clk 0:01:11.9]} 62... Kh5 {[%clk 0:00:48.2]} 63. Kh3 {[%clk 0:01:12]} 63...
Kg5 {[%clk 0:00:48.5]} 64. Kg3 {[%clk 0:01:12.1]} 1/2-1/2

[Event "*** Titled Tuesday Blitz"]
[Site "Chess.com"]
[Date "2020.04.28"]
[Round "1"]
[White "XDPS"]
[Black "WPWPWP-2015"]
[Result "1-0"]
[WhiteElo "2766"]
[BlackElo "2410"]
[TimeControl "180+1"]
[EndTime "10:06:31 PDT"]
[Termination "XDPS won by resignation"]

1. d4 {[%clk 0:03:00.9]} 1... Nf6 {[%clk 0:02:56.2]} 2. Nf3 {[%clk 0:03:00.4]}
2... d5 {[%clk 0:02:55.3]} 3. Bf4 {[%clk 0:02:56.4]} 3... c6 {[%clk 0:02:54.4]}
4. e3 {[%clk 0:02:56.2]} 4... Bf5 {[%clk 0:02:53.6]} 5. c4 {[%clk 0:02:56.2]}
5... e6 {[%clk 0:02:53.2]} 6. Qb3 {[%clk 0:02:56.2]} 6... Qb6 {[%clk 0:02:52.6]}
7. Nc3 {[%clk 0:02:56.2]} 7... Nbd7 {[%clk 0:02:51.4]} 8. c5 {[%clk 0:02:55.2]}
8... Qxb3 {[%clk 0:02:50.7]} 9. axb3 {[%clk 0:02:56.1]} 9... a6 {[%clk 0:02:50]}
10. b4 {[%clk 0:02:56.3]} 10... Rc8 {[%clk 0:02:49.5]} 11. Nd2 {[%clk
0:02:55.8]} 11... Be7 {[%clk 0:02:49]} 12. Nb3 {[%clk 0:02:54.2]} 12... Bd8
{[%clk 0:02:28.2]} 13. Na5 {[%clk 0:02:53.5]} 13... Bxa5 {[%clk 0:02:26.9]} 14.
bxa5 {[%clk 0:02:54.4]} 14... Kd8 {[%clk 0:02:05.2]} 15. Ra4 {[%clk 0:02:52.3]}
15... Ra8 {[%clk 0:01:56.1]} 16. Rb4 {[%clk 0:02:51.5]} 16... Ra7 {[%clk
0:01:56.4]} 17. Be2 {[%clk 0:02:51.3]} 17... Ne8 {[%clk 0:01:53.6]} 18. Kd2
{[%clk 0:02:26.3]} 18... f6 {[%clk 0:01:52.9]} 19. Ra1 {[%clk 0:02:23]} 19... e5
{[%clk 0:01:52.4]} 20. Bg3 {[%clk 0:02:23.4]} 20... Nc7 {[%clk 0:01:49.9]} 21.
Ra3 {[%clk 0:01:46.6]} 21... Nb5 {[%clk 0:01:47.4]} 22. Nxb5 {[%clk 0:01:46.5]}
22... axb5 {[%clk 0:01:47]} 23. f3 {[%clk 0:01:39.4]} 23... g5 {[%clk
0:01:42.5]} 24. Ra2 {[%clk 0:01:35.6]} 24... Re8 {[%clk 0:01:38.5]} 25. Rb3
{[%clk 0:01:35]} 25... Nb8 {[%clk 0:01:21.3]} 26. h4 {[%clk 0:01:33]} 26... h6
{[%clk 0:01:20.8]} 27. Ra1 {[%clk 0:01:30]} 27... Ra8 {[%clk 0:01:12.3]} 28.
Rba3 {[%clk 0:01:29.5]} 28... Na6 {[%clk 0:01:11.2]} 29. hxg5 {[%clk 0:01:28]}
29... hxg5 {[%clk 0:01:10.8]} 30. Rh1 {[%clk 0:01:28.6]} 30... Rc8 {[%clk
0:00:55.2]} 31. Rh6 {[%clk 0:01:27.3]} 31... exd4 {[%clk 0:00:53.9]} 32. exd4
{[%clk 0:01:27.2]} 32... Re6 {[%clk 0:00:53.5]} 33. Bd6 {[%clk 0:01:21.8]} 33...
b4 {[%clk 0:00:38.3]} 34. Ra1 {[%clk 0:01:21]} 34... b3 {[%clk 0:00:35.7]} 35.
g4 {[%clk 0:01:19.3]} 35... Bc2 {[%clk 0:00:35.1]} 36. Rah1 {[%clk 0:01:18]}
36... Kd7 {[%clk 0:00:34]} 37. Rh7+ {[%clk 0:01:13]} 37... Bxh7 {[%clk
0:00:32.5]} 38. Rxh7+ {[%clk 0:01:13.9]} 38... Ke8 {[%clk 0:00:32.2]} 39. Rxb7
{[%clk 0:01:14.5]} 39... Rxd6 {[%clk 0:00:15.2]} 40. cxd6 {[%clk 0:01:12.9]}
40... Nb8 {[%clk 0:00:15.3]} 41. a6 {[%clk 0:01:12]} 41... Nd7 {[%clk
0:00:12.9]} 42. a7 {[%clk 0:01:12.4]} 42... Ra8 {[%clk 0:00:13]} 43. Bd3 {[%clk
0:01:12.9]} 43... Kd8 {[%clk 0:00:12.9]} 44. Bf5 {[%clk 0:01:13.2]} 44... Nb6
{[%clk 0:00:13]} 45. Rb8+ {[%clk 0:01:08]} 1-0

[Event "*** Titled Tuesday Blitz"]
[Site "Chess.com"]
[Date "2020.04.28"]
[Round "1"]
[White "zmeeed67"]
[Black "KuzubovYuriy"]
[Result "0-1"]
[WhiteElo "2387"]
[BlackElo "2734"]
[TimeControl "180+1"]
[EndTime "10:06:31 PDT"]
[Termination "KuzubovYuriy won by resignation"]

1. d4 {[%clk 0:02:19.3]} 1... Nf6 {[%clk 0:02:58.1]} 2. c4 {[%clk 0:02:19.6]}
2... e6 {[%clk 0:02:58.3]} 3. Nc3 {[%clk 0:02:20.1]} 3... Bb4 {[%clk 0:02:57.8]}
4. f3 {[%clk 0:02:20.6]} 4... d5 {[%clk 0:02:53.8]} 5. a3 {[%clk 0:02:20.3]}
5... Be7 {[%clk 0:02:53.5]} 6. e4 {[%clk 0:02:19]} 6... dxe4 {[%clk 0:02:51.6]}
7. fxe4 {[%clk 0:02:19.9]} 7... c5 {[%clk 0:02:51.7]} 8. d5 {[%clk 0:02:20]}
8... exd5 {[%clk 0:02:51.3]} 9. exd5 {[%clk 0:02:20.9]} 9... O-O {[%clk
0:02:50.5]} 10. Nf3 {[%clk 0:02:21.5]} 10... Re8 {[%clk 0:02:47.6]} 11. Be2
{[%clk 0:02:21.9]} 11... Nbd7 {[%clk 0:02:43.8]} 12. O-O {[%clk 0:02:21.9]}
12... Nf8 {[%clk 0:02:43]} 13. h3 {[%clk 0:02:06.3]} 13... Ng6 {[%clk 0:02:39]}
14. Bd3 {[%clk 0:02:02.9]} 14... Bd7 {[%clk 0:02:21.2]} 15. Bg5 {[%clk
0:01:56.5]} 15... h6 {[%clk 0:02:16.2]} 16. Bd2 {[%clk 0:01:44]} 16... Bd6
{[%clk 0:02:11.4]} 17. Bxg6 {[%clk 0:01:13.5]} 17... fxg6 {[%clk 0:02:10.9]} 18.
Nh4 {[%clk 0:01:14.4]} 18... g5 {[%clk 0:01:52.7]} 19. Nf5 {[%clk 0:01:10.6]}
19... Be5 {[%clk 0:01:46.4]} 20. Qf3 {[%clk 0:00:53.7]} 20... Qc7 {[%clk
0:01:05.8]} 21. Rae1 {[%clk 0:00:50.5]} 21... Bxf5 {[%clk 0:01:03.4]} 22. Qxf5
{[%clk 0:00:50.5]} 22... Bd4+ {[%clk 0:01:03.1]} 23. Kh1 {[%clk 0:00:50.1]}
23... Nh5 {[%clk 0:01:01.6]} 24. Rxe8+ {[%clk 0:00:16.9]} 24... Rxe8 {[%clk
0:01:00.2]} 25. Be1 {[%clk 0:00:17.8]} 25... Rxe1 {[%clk 0:00:42.5]} 26. Qf8+
{[%clk 0:00:17.6]} 26... Kh7 {[%clk 0:00:41.8]} 27. d6 {[%clk 0:00:08.1]} 27...
Rxf1+ {[%clk 0:00:38.1]} 28. Qxf1 {[%clk 0:00:05.4]} 28... Ng3+ {[%clk
0:00:38.2]} 0-1

[Event "*** Titled Tuesday Blitz"]
[Site "Chess.com"]
[Date "2020.04.28"]
[Round "1"]
[White "DonBroca"]
[Black "Chessmasterzt"]
[Result "0-1"]
[WhiteElo "2032"]
[BlackElo "2492"]
[TimeControl "180+1"]
[EndTime "10:06:31 PDT"]
[Termination "Chessmasterzt won on time"]

1. e4 {[%clk 0:02:55.6]} 1... d5 {[%clk 0:02:59.1]} 2. exd5 {[%clk 0:02:55.1]}
2... Nf6 {[%clk 0:02:59.6]} 3. c4 {[%clk 0:02:55.3]} 3... c6 {[%clk 0:02:58.8]}
4. d4 {[%clk 0:02:55.8]} 4... cxd5 {[%clk 0:02:59.1]} 5. Nf3 {[%clk 0:02:56.4]}
5... g6 {[%clk 0:02:59.5]} 6. Nc3 {[%clk 0:02:56]} 6... Bg7 {[%clk 0:02:59.9]}
7. Be2 {[%clk 0:02:56.3]} 7... O-O {[%clk 0:03:00.1]} 8. O-O {[%clk 0:02:56.8]}
8... Nc6 {[%clk 0:02:59.8]} 9. Bf4 {[%clk 0:02:55.4]} 9... dxc4 {[%clk
0:02:54.5]} 10. Bxc4 {[%clk 0:02:51.3]} 10... Na5 {[%clk 0:02:54.7]} 11. Be2
{[%clk 0:02:49.1]} 11... Be6 {[%clk 0:02:54.8]} 12. d5 {[%clk 0:02:45.5]} 12...
Nxd5 {[%clk 0:02:50.7]} 13. Nxd5 {[%clk 0:02:45.2]} 13... Qxd5 {[%clk 0:02:51]}
14. Qa4 {[%clk 0:02:41]} 14... Nc6 {[%clk 0:02:41.6]} 15. Rfd1 {[%clk
0:02:14.4]} 15... Qa5 {[%clk 0:02:40.2]} 16. Qxa5 {[%clk 0:02:11.7]} 16... Nxa5
{[%clk 0:02:41.1]} 17. Rac1 {[%clk 0:02:10.8]} 17... Rac8 {[%clk 0:02:30.6]} 18.
b3 {[%clk 0:02:10.5]} 18... Rxc1 {[%clk 0:02:24.5]} 19. Rxc1 {[%clk 0:02:11.4]}
19... Rc8 {[%clk 0:02:24.1]} 20. Rxc8+ {[%clk 0:01:37.3]} 20... Bxc8 {[%clk
0:02:25]} 21. Bb5 {[%clk 0:01:34]} 21... a6 {[%clk 0:02:16.7]} 22. Bd3 {[%clk
0:01:25.5]} 22... Nc6 {[%clk 0:02:04.7]} 23. Kf1 {[%clk 0:01:02.1]} 23... f6
{[%clk 0:01:51.1]} 24. g3 {[%clk 0:00:08.7]} 24... e5 {[%clk 0:01:46.8]} 25. Be3
{[%clk 0:00:09.6]} 25... Kf7 {[%clk 0:01:46.8]} 26. Bc4+ {[%clk 0:00:08.6]}
26... Be6 {[%clk 0:01:47.2]} 27. Nd2 {[%clk 0:00:08.2]} 27... Bf8 {[%clk
0:01:42.1]} 28. Bxe6+ {[%clk 0:00:06.9]} 28... Kxe6 {[%clk 0:01:43]} 29. Nc4
{[%clk 0:00:07.2]} 29... h5 {[%clk 0:01:38.2]} 30. Nb6 {[%clk 0:00:07.4]} 30...
g5 {[%clk 0:01:34.2]} 31. Ke2 {[%clk 0:00:05.9]} 31... g4 {[%clk 0:01:28]} 32.
Bd2 {[%clk 0:00:06.8]} 32... Bc5 {[%clk 0:01:24.9]} 33. Nc4 {[%clk 0:00:07.7]}
33... b5 {[%clk 0:01:24]} 34. Nb2 {[%clk 0:00:08.3]} 34... Nd4+ {[%clk
0:01:22.6]} 35. Kf1 {[%clk 0:00:07.6]} 35... Nf3 {[%clk 0:01:22]} 36. Nd3 {[%clk
0:00:08.5]} 36... Bd6 {[%clk 0:01:03.3]} 37. Ke2 {[%clk 0:00:09.4]} 37... Nxh2
{[%clk 0:01:01.7]} 0-1

[Event "*** Titled Tuesday Blitz"]
[Site "Chess.com"]
[Date "2020.04.28"]
[Round "1"]
[White "HouseOfDurin"]
[Black "JoakimVonAnd"]
[Result "0-1"]
[WhiteElo "2068"]
[BlackElo "2500"]
[TimeControl "180+1"]
[EndTime "10:06:33 PDT"]
[Termination "JoakimVonAnd won on time"]

1. d4 {[%clk 0:03:00.9]} 1... d5 {[%clk 0:02:59.8]} 2. Bg5 {[%clk 0:03:01.1]}
2... Nf6 {[%clk 0:02:57.6]} 3. Bxf6 {[%clk 0:03:01.3]} 3... gxf6 {[%clk
0:02:54.9]} 4. e3 {[%clk 0:03:02.2]} 4... Bf5 {[%clk 0:02:54.6]} 5. c4 {[%clk
0:03:02.5]} 5... c6 {[%clk 0:02:49.8]} 6. Nc3 {[%clk 0:03:02]} 6... e6 {[%clk
0:02:49.8]} 7. cxd5 {[%clk 0:03:01.2]} 7... cxd5 {[%clk 0:02:49.3]} 8. a3 {[%clk
0:02:59.3]} 8... Nc6 {[%clk 0:02:49]} 9. g3 {[%clk 0:02:58]} 9... Bd6 {[%clk
0:02:47.1]} 10. Bg2 {[%clk 0:02:57.8]} 10... Rc8 {[%clk 0:02:44.4]} 11. Nge2
{[%clk 0:02:58]} 11... Na5 {[%clk 0:02:41.6]} 12. O-O {[%clk 0:02:48.6]} 12...
Nc4 {[%clk 0:02:41.1]} 13. Qa4+ {[%clk 0:01:43.2]} 13... Kf8 {[%clk 0:02:35.9]}
14. b3 {[%clk 0:01:32.7]} 14... Na5 {[%clk 0:01:58.3]} 15. b4 {[%clk 0:01:19.2]}
15... Nc6 {[%clk 0:01:56.6]} 16. Rfc1 {[%clk 0:00:54.8]} 16... Kg7 {[%clk
0:01:52.9]} 17. h4 {[%clk 0:00:52.6]} 17... a6 {[%clk 0:01:50.8]} 18. b5 {[%clk
0:00:52]} 18... axb5 {[%clk 0:01:45.9]} 19. Qxb5 {[%clk 0:00:44.5]} 19... Qe7
{[%clk 0:01:44.1]} 20. a4 {[%clk 0:00:25.3]} 20... Nb4 {[%clk 0:01:30.7]} 21.
Rd1 {[%clk 0:00:17.9]} 21... Rc4 {[%clk 0:01:17.3]} 22. Bf1 {[%clk 0:00:10]}
22... Rhc8 {[%clk 0:01:15.6]} 23. Rac1 {[%clk 0:00:08.9]} 23... Nd3 {[%clk
0:01:03.1]} 24. Rc2 {[%clk 0:00:07.3]} 24... Rb4 {[%clk 0:01:02.5]} 25. Qa5
{[%clk 0:00:06.1]} 25... Nxf2 {[%clk 0:01:02.6]} 26. Kxf2 {[%clk 0:00:05.5]}
26... Bxc2 {[%clk 0:01:02.7]} 27. Rd2 {[%clk 0:00:05.2]} 27... Bg6 {[%clk
0:01:02.5]} 28. e4 {[%clk 0:00:04.4]} 28... dxe4 {[%clk 0:01:02]} 29. Nf4 {[%clk
0:00:04]} 29... Bxf4 {[%clk 0:01:01.3]} 30. gxf4 {[%clk 0:00:04.9]} 30... e3+
{[%clk 0:01:00.5]} 31. Kxe3 {[%clk 0:00:04.6]} 31... Rxc3+ {[%clk 0:01:01]} 32.
Bd3 {[%clk 0:00:03.5]} 32... Bxd3 {[%clk 0:00:59.7]} 33. Rxd3 {[%clk 0:00:04.4]}
33... Rxd3+ {[%clk 0:00:59.9]} 34. Kxd3 {[%clk 0:00:05.3]} 34... Qd6 {[%clk
0:00:56.8]} 0-1

[Event "*** Titled Tuesday Blitz"]
[Site "Chess.com"]
[Date "2020.04.28"]
[Round "1"]
[White "Alexa797"]
[Black "Riazantsev"]
[Result "0-1"]
[WhiteElo "2339"]
[BlackElo "2679"]
[TimeControl "180+1"]
[EndTime "10:06:34 PDT"]
[Termination "Riazantsev won by resignation"]

1. d4 {[%clk 0:02:58.6]} 1... e6 {[%clk 0:02:59.3]} 2. c4 {[%clk 0:02:59.1]}
2... b6 {[%clk 0:02:59.3]} 3. Nc3 {[%clk 0:02:59.5]} 3... Bb4 {[%clk 0:02:58.4]}
4. Nf3 {[%clk 0:03:00.1]} 4... Bb7 {[%clk 0:02:58]} 5. Qc2 {[%clk 0:02:56.8]}
5... f5 {[%clk 0:02:57.2]} 6. Bg5 {[%clk 0:02:54.8]} 6... Nf6 {[%clk 0:02:56.3]}
7. e3 {[%clk 0:02:55.3]} 7... O-O {[%clk 0:02:55.7]} 8. Bd3 {[%clk 0:02:54.8]}
8... h6 {[%clk 0:02:55]} 9. Bh4 {[%clk 0:02:53.1]} 9... g5 {[%clk 0:02:53.5]}
10. Bg3 {[%clk 0:02:53.1]} 10... Ne4 {[%clk 0:02:53.4]} 11. Bxe4 {[%clk
0:02:49.5]} 11... Bxe4 {[%clk 0:02:48.2]} 12. Qd2 {[%clk 0:02:44.1]} 12... Bxc3
{[%clk 0:02:41.1]} 13. bxc3 {[%clk 0:02:42.4]} 13... d6 {[%clk 0:02:33.3]} 14.
h4 {[%clk 0:02:27.6]} 14... g4 {[%clk 0:02:31]} 15. Ng1 {[%clk 0:02:24.7]} 15...
Bxg2 {[%clk 0:02:30]} 16. Rh2 {[%clk 0:02:25.3]} 16... Be4 {[%clk 0:02:29.6]}
17. Ne2 {[%clk 0:02:26.1]} 17... Nc6 {[%clk 0:02:21.4]} 18. Bf4 {[%clk
0:02:20.6]} 18... Kh7 {[%clk 0:02:17.4]} 19. Ng3 {[%clk 0:02:14.2]} 19... Qf6
{[%clk 0:02:07]} 20. Nxe4 {[%clk 0:01:56.1]} 20... fxe4 {[%clk 0:02:06.6]} 21.
h5 {[%clk 0:01:55.4]} 21... Na5 {[%clk 0:02:03.3]} 22. Qe2 {[%clk 0:01:53.7]}
22... Qf5 {[%clk 0:02:02.6]} 23. O-O-O {[%clk 0:01:49.1]} 23... Rg8 {[%clk
0:01:58]} 24. Rg1 {[%clk 0:01:48.4]} 24... Rg7 {[%clk 0:01:56.4]} 25. Rh4 {[%clk
0:01:47]} 25... Rag8 {[%clk 0:01:55.6]} 26. Kc2 {[%clk 0:01:30.5]} 26... a6
{[%clk 0:01:55.9]} 27. Kb1 {[%clk 0:01:21.4]} 27... b5 {[%clk 0:01:56]} 28. cxb5
{[%clk 0:01:20.2]} 28... axb5 {[%clk 0:01:56.3]} 29. Ka1 {[%clk 0:01:20.8]}
29... Nc4 {[%clk 0:01:56.3]} 30. Rb1 {[%clk 0:01:20.3]} 30... Ra8 {[%clk
0:01:50.6]} 31. Rb4 {[%clk 0:01:14.9]} 31... c6 {[%clk 0:01:45.7]} 32. Rb1
{[%clk 0:01:14]} 32... e5 {[%clk 0:01:39.6]} 33. Bg3 {[%clk 0:01:08.8]} 33...
exd4 {[%clk 0:01:37.5]} 34. exd4 {[%clk 0:01:01.7]} 34... Rf8 {[%clk 0:01:25.2]}
35. Re1 {[%clk 0:00:53.6]} 35... d5 {[%clk 0:01:25.3]} 36. Rg1 {[%clk
0:00:45.8]} 36... Qf3 {[%clk 0:01:24.9]} 37. Qc2 {[%clk 0:00:43.1]} 37... Rf5
{[%clk 0:01:19.3]} 38. Re1 {[%clk 0:00:37.3]} 38... Rgg5 {[%clk 0:01:14.9]} 39.
Reh1 {[%clk 0:00:35.2]} 39... Kg7 {[%clk 0:01:14]} 40. Bc7 {[%clk 0:00:31.5]}
40... Qxf2 {[%clk 0:01:09.4]} 41. Qb3 {[%clk 0:00:29.2]} 41... g3 {[%clk
0:01:00.8]} 42. a4 {[%clk 0:00:27.1]} 42... g2 {[%clk 0:01:00.8]} 0-1